Cogmind - Beta 9.1 @@@ ROGUE MODE // 2019.10.30 @ 19:51:47 Player: tourn Result: Destroyed by as-84000 with Assembled Blade Performance ------------- Evolutions (0) 0 Regions Visited (2) 400 Robots Destroyed (10) 50 Value Destroyed (133) 133 Prototype IDs (2) 40 Alien Tech Used (0) 0 Bonus (-32) -32 TOTAL SCORE: 591 Bonus ------- Follower Combat Kills 21 Friendly Fire -53 Cogmind --------- Core Integrity 0/250 Matter 295/300 Energy 100/100 System Corruption 4% Temperature Cool (0) Location -10/Mines Parts ------- Power (1) Propulsion (2) Compact Wheel Utility (2) High-capacity Storage Unit Weapon (2) Inventory (12) Ion Engine Light Ion Engine Light Treads Aluminum Leg Aluminum Leg Aluminum Leg Small Laser Light Assault Rifle Light Assault Rifle Grenade Launcher Peak State ------------ Power Light Nuclear Core Propulsion Aluminum Leg Aluminum Leg Utility Improved Heat Sink High-capacity Storage Unit Weapon Particle Gun Assault Rifle Inventory Ion Engine Light Ion Engine Light Treads Aluminum Leg Aluminum Leg Compact Wheel Compact Wheel Small Laser Light Assault Rifle Light Assault Rifle Grenade Launcher [Rating: 13] Favorites ----------- Power Light Nuclear Core Engine Ion Engine Power Core Light Nuclear Core Propulsion Aluminum Leg Leg Aluminum Leg Wheel Compact Wheel Utility High-capacity Storage Unit Device Improved Heat Sink Storage High-capacity Storage Unit Weapon Assault Rifle Energy Gun Particle Gun Ballistic Gun Assault Rifle Launcher Grenade Launcher Build | -11 -10 -10 ------- Run | Scr Mat Min Slots Evolved . | . . . Power . | . . . Propulsion . | . . . Utility . | . . . Weapon . | . . . Parts Attached 14 | . 3 11 Power 1 | . . 1 Engine . | . . . Core 1 | . . 1 Reactor . | . . . Propulsion 4 | . . 4 Treads . | . . . Leg 2 | . . 2 Wheel 2 | . . 2 Hover . | . . . Flight . | . . . Utility 3 | . 2 1 Device 2 | . 1 1 Storage 1 | . 1 . Processor . | . . . Hackware . | . . . Protection . | . . . Artifact . | . . . Weapon 6 | . 1 5 Energy Gun 1 | . . 1 Energy Cannon . | . . . Ballistic Gun 3 | . 1 2 Ballistic Cannon . | . . . Launcher 2 | . . 2 Special Weapon . | . . . Impact Weapon . | . . . Slashing Weapon . | . . . Piercing Weapon . | . . . Special Melee Weapon . | . . . Unidentified Prototypes . | . . . Parts Lost 7 | . 1 6 Power 1 | . . 1 Propulsion 2 | . . 2 Utility 2 | . 1 1 Weapon 2 | . . 2 Highest Loss Streak 6 | . 1 6 Average Slot Usage (%) 92 | . 98 89 Engine 4 | . 14 . Core 9 | . . 13 Leg 27 | . 28 27 Device 7 | . 13 5 Storage 14 | . 14 14 Energy Gun 6 | . . 9 Ballistic Gun 20 | . 28 18 Naked Turns . | . . . Heaviest Build 43 | 11 41 43 Greatest Support 32 | 20 20 32 Greatest Overweight (x) 2 | . 2 2 Average Overweight (x) 1 | . . 1 Largest Inventory Capacity 12 | 6 12 12 Average Capacity 10 | 6 8 12 Most Carried 12 | 6 6 12 Average Carried 9 | 6 5 10 Final Capacity 12 | 6 12 12 Final Carried 10 | 6 6 10 Class Distribution -------------------- 72% | Mutant 27% | Scavenger-Mutant Dominant Class ---------------- Mutant | -10/Materials Mutant | -10/Mines Resources | -11 -10 -10 ----------- Run | Scr Mat Min Matter Collected 403 | 200 . 203 Remotely . | . . . Salvage Created 218 | . . 218 Parts 16 | . . 16 Haulers Intercepted . | . . . Recyclers Shooed . | . . . Parts Field Recycled . | . . . Retrieved Matter . | . . . Parts Self-Destructed . | . . . Prevented . | . . . Kills | -11 -10 -10 ------- Run | Scr Mat Min Combat Hostiles Destroyed 7 | . . 7 Guns 1 | . . 1 AOE 6 | . . 6 Classes Destroyed 4 | . . 4 Tunneler 1 | . . 1 Recycler 2 | . . 2 Swarmer 6 | . . 6 Grunt 1 | . . 1 Best Kill Streak 4 | . . 4 Combat Bots Only 3 | . . 3 Max Kills in Single Turn 3 | . . 3 Gunslinging . | . . . Exploded 3 | . . 3 Melee . | . . . Uniques/NPCs Destroyed . | . . . Combat | -11 -10 -10 -------- Run | Scr Mat Min Damage Taken 1079 | . 183 896 Core 278 | . 41 237 Absorbed by Shields . | . . . Core Remaining (%) 100 | 100 . . Volleys Fired 19 | . 4 15 Largest 2 | . 2 2 Hottest 85 | . 40 85 Shots Fired 34 | . 8 26 Gun 30 | . 8 22 Cannon . | . . . Launcher 4 | . . 4 Special . | . . . Kinetic 28 | . 8 20 Thermal 2 | . . 2 Explosive 4 | . . 4 Electromagnetic . | . . . Robot Hit Streak 5 | . 1 5 Robot Miss Streak 5 | . 3 5 Penetration Max . | . . . Secondary Targets . | . . . Shots Hit Robots 15 | . 2 13 Core Hits 18 | . . 18 Critical Hits . | . . . Critical Kills . | . . . Critical Parts Destroyed . | . . . Melee Attacks . | . . . Impact . | . . . Slashing . | . . . Piercing . | . . . Sneak Attacks . | . . . Combat Hostiles . | . . . Follow-up Attacks . | . . . Damage Inflicted 501 | . 20 481 Guns 175 | . 20 155 Cannons . | . . . Explosions 316 | . . 316 Melee . | . . . Ramming 10 | . . 10 Kinetic 148 | . 20 128 Thermal 27 | . . 27 Explosive 316 | . . 316 Electromagnetic . | . . . Impact . | . . . Slashing . | . . . Piercing . | . . . Highest Corruption 4 | . . 4 Average Corruption 3 | . . 3 Corruption Purged . | . . . Effects 1 | . . 1 Heat Flow Errors 1 | . . 1 Overload Shots . | . . . Overflow Damage . | . . . Projectiles . | . . . Explosions . | . . . Melee . | . . . Knockbacks . | . . . Impact . | . . . Kinetic . | . . . Secondary . | . . . Self-Inflicted Damage 45 | . . 45 Shots 1 | . . 1 Rammed 1 | . . 1 Targets Rammed 1 | . . 1 Kicked . | . . . Crushed . | . . . Highest Temperature 105 | . . 105 Average Temperature 17 | . . 17 Received Heat Transfer 240 | . . 240 Siege Activations . | . . . Robots Corrupted . | . . . Combat Hostiles . | . . . Parts Fried . | . . . Impact Corruptions . | . . . Robots Melted . | . . . Combat Hostiles . | . . . Parts Melted . | . . . Heat Transferred 74 | . . 74 Parts Sabotaged . | . . . Parts Stolen . | . . . Parts Stripped . | . . . Power Chain Reactions . | . . . Missiles Intercepted . | . . . Alert | -11 -10 -10 ------- Run | Scr Mat Min Peak Influence 133 | . 38 133 Average Influence 46 | . 16 57 Maximum Alert Level . | . . . Low Security (%) 100 | . . . Level 1 . | . . . Level 2 . | . . . Level 3 . | . . . Level 4 . | . . . Level 5 . | . . . High Security . | . . . Max Security . | . . . Squads Dispatched . | . . . Investigation . | . . . Extermination . | . . . Reinforcement . | . . . Assault . | . . . Garrison . | . . . Intercept . | . . . Construction Impeded . | . . . Haulers Reinforced . | . . . Stealth | -11 -10 -10 --------- Run | Scr Mat Min Distress Signals . | . . . Communications Jammed . | . . . Distress Signals . | . . . Times Spotted 28 | . 6 22 Peak Tracking Total 15 | . 4 15 Tactical Retreats 1 | . . 1 Traps | -11 -10 -10 ------- Run | Scr Mat Min Traps Triggered . | . . . Indirectly . | . . . Trap Hack Attempts . | . . . Triggered . | . . . Disarmed . | . . . Reprogrammed . | . . . Reused . | . . . Traps Extracted . | . . . Installed . | . . . Triggered . | . . . Machines | -11 -10 -10 ---------- Run | Scr Mat Min Machines Disabled 2 | . . 2 Max in Single Turn 1 | . . 1 Machines Sabotaged . | . . . Garrisons Compromised . | . . . Overloaded Fab Kills . | . . . Fab Network Shutdowns . | . . . Hacking | -11 -10 -10 --------- Run | Scr Mat Min Machines Accessed 2 | . 1 1 Terminals 2 | . 1 1 Fabricators . | . . . Repair Stations . | . . . Recycling Units . | . . . Scanalyzers . | . . . Garrison Access . | . . . Total Hacks 5 | . 4 1 Successful 3 | . 2 1 Failed 2 | . 2 . Catastrophic 1 | . 1 . Database Lockouts . | . . . Manual 3 | . 2 1 Terminals 5 | . 4 1 Fabricators . | . . . Repair Stations . | . . . Recycling Units . | . . . Scanalyzers . | . . . Garrison Access . | . . . Terminal Hacks 3 | . 2 1 Prototype ID Bank 1 | . 1 . Branch Access Points 1 | . 1 . Unreport Threat 1 | . . 1 Fabricator Hacks . | . . . Repair Station Hacks . | . . . Recycling Unit Hacks . | . . . Scanalyzer . | . . . Garrison Access Hacks . | . . . Unauthorized Hacks . | . . . Terminals . | . . . Fabricators . | . . . Repair Stations . | . . . Recycling Units . | . . . Scanalyzers . | . . . Garrison Access . | . . . Data Cores Recovered . | . . . Used . | . . . Hacking Detections 1 | . 1 . Full Trace Events . | . . . Feedback Events . | . . . Feedback Blocked . | . . . Robot Schematics Acquired . | . . . Robots Built . | . . . Matter . | . . . Time . | . . . Total Robot Build Rating . | . . . Part Schematics Acquired . | . . . Parts Built . | . . . Matter . | . . . Time . | . . . Total Part Build Rating . | . . . Parts Repaired . | . . . Time . | . . . Parts Recycled . | . . . Recycled Matter . | . . . Retrieved Matter . | . . . Retrieved Components . | . . . Parts Scanalyzed . | . . . Part Schematics Acquired . | . . . Parts Damaged . | . . . Bothacking | -11 -10 -10 ------------ Run | Scr Mat Min Used RIF Installer . | . . . Robots Hacked . | . . . Non-combat . | . . . Combat . | . . . Robot Hacks Applied . | . . . Relay Couplers Released . | . . . Robots Rewired . | . . . Allies Hacked . | . . . Hacks Repelled . | . . . Allies | -11 -10 -10 -------- Run | Scr Mat Min Total Allies 3 | . . 3 Largest Group 3 | . . 3 Highest-Rated Group 40 | . . 40 Highest-Rated Ally 16 | . . 16 Total Orders . | . . . Ally Attacks 12 | . . 12 Total Damage 107 | . . 107 Kills 3 | . . 3 Allies Corrupted . | . . . Allies Melted . | . . . Intel | -11 -10 -10 ------- Run | Scr Mat Min Robot Analysis Total . | . . . Derelict Logs Recovered 2 | . . 2 Drone Launches . | . . . Drone Recoveries . | . . . Exploration | -11 -10 -10 ------------- Run | Scr Mat Min Turns Passed 1095 | 3 286 806 Spaces Moved 632 | 3 198 431 Core . | . . . Treads . | . . . Legs 619 | 3 198 418 Wheels 13 | . . 13 Hover . | . . . Flight . | . . . Fastest Speed 100 | 120 120 100 Average Speed 157 | 120 136 167 Slowest Speed 180 | 120 180 180 Overloaded Moves . | . . . Propulsion Burnouts . | . . . Robots Hopped . | . . . Cave-ins Triggered . | . . . Exploration Rate (%) 36 | 3 37 70 Regions Visited 2 Branch Regions 1 Pre-discovered Areas . | . . . Known Exits Taken 1 | . 1 . Unknown Exits Taken 1 | 1 . . Scrap Searched 1 | . . 1 Spaces Dug . | . . . Terrain Destroyed 33 | . . 33 Melee . | . . . Projectile . | . . . AOE 33 | . . 33 Actions | -11 -10 -10 --------- Run | Scr Mat Min Total 697 | 2 207 488 Wait 24 | . . 24 Move 630 | 2 197 431 Hop . | . . . Pick Up 5 | . 1 4 Fast Attach 3 | . 1 2 Attach 2 | . . 2 Detach 1 | . . 1 Swap 9 | . 2 7 Drop 3 | . 2 1 Fire 19 | . 4 15 Melee . | . . . Ram . | . . . Kick 1 | . . 1 Crush . | . . . Escape Stasis . | . . . Rewire . | . . . Trap . | . . . Miscellaneous . | . . . Route ------- -11/Scrapyard -10/Materials (discovered 2 exits: [*Mat] / *Min) -10/Mines (discovered 3 exits: [*Mat x2] / *Exi) History --------- Turn | Location | Event 1 | -11/Scrapyard | Discovered new exit (range 3) 4 | -11/Scrapyard | Entered Materials 65 | -10/Materials | Identified exit to Mines 198 | -10/Materials | Discovered new exit (range 12) 290 | -10/Materials | Entered Mines 303 | -10/Mines | Build established: Mutant 402 | -10/Mines | Identified exit to Exiles 403 | -10/Mines | Learned location of 1 exit from Materials 442 | -10/Mines | Discovered new exit (range 7) 454 | -10/Mines | Assisted by bots powering up and referring to "LRC-V3" 896 | -10/Mines | Deemed a non-threat by the Exiles lab entrance 1020 | -10/Mines | Discovered new exit (range 9) 1036 | -10/Mines | Assembled infested the area 1078 | -10/Mines | Core integrity fell below 50% 1092 | -10/Mines | Core integrity fell below 20% 1096 | -10/Mines | Destroyed by as-84000 with Assembled Blade Last Messages --------------- 00896_ "No threat detected, you may enter." 01020_ EXIT=FOUND 01036_ ALERT: Infestation in the mines, dispatching Demolisher response squad. 01057_ Trooper 1a destroyed. 01066_ K-01 Serf destroyed. 01072_ Slammed into as-96499. 01077_ Aluminum Leg destroyed. 01077_ System corrupted by crushing effect (+2). 01079_ Assault Rifle destroyed. 01079_ Lgt. Nuclear Core destroyed. 01080_ K-01 Serf collects debris. 01080_ Particle Gun destroyed. 01080_ System corrupted by crushing effect (+2). 01080_ Knocked back. 01081_ K-01 Serf collects debris. 01082_ System corrupted: Heat flow error (+144). 01083_ K-01 Serf destroyed. 01089_ Imp. Heat Sink destroyed. 01092_ Com. Wheel destroyed. Map ----- +----------------------------------------------------+ | ???# ##???????????????????????????????????????? | | ???# #???????????????????????????????????????? | | ???+ %= #???????????????????????????????????????? | | ???+ #?????????? ???????????????????????????? | | ???# ##???????? #????????????????????????? | | ??## #??????? ### ?????????????????????? | | ??# ##?????? ????????????????????? | | ??# ##????? ???????????????????? | | ?# ## ##???? ???????????????????? | | # #?## #???? #??????????????????? | | ??## %##???# #???????????????????? | | ## #???# #????????????????????? | | # #??## #?????????????????????? | | ## %##### #???????????????????????? | | ?# < % = #????????????????????????? | | ?## = %! a #???????????????????####### | | ??###### #### ##???????????????????# | | ???????## #??# ##???????????????????# | | ????????####??## a a ##??????????????????#""" | | ???????????????### a ##?????????????????#""" | | ?????????????????## #?????????????????#""" | | ??????????????????##aaa #?????????????????# | | ???????????????????## a #?????????????????## #### | | ????????????????????##aa #??????????????????# #??? | | ?????????????????????# a##?????????????????# #??? | | ????????????????????## @##????????????????# #??? | | ????????????????????# #????????????????# #??? | | ##########??????????# ##???????????????# #??? | | # ##?????????## ###?????????????# #??? | | #??????????### ##????????????# #??? | | #????????????## % #????????????# #??? | | ##???##????????## #????????????# #??? | | #???## ##???????## ##????????????# #??? | | #???# #????????# ##?????????????# #??? | | # ###### ##???????# #??????????????# #??? | | ### !## #####?### #??????????????# #### | | ??## ####%### ### #??????????????# % | | ???#### #??#= ###????????????###### | | ??????# #??# #####?????????????? | | ??????# #??# ######## """% * ##????????????? | | ??????# #??# #??????## """ %% ##???????????? | | ??????# #??# #???????# """ % #???######### | | ??????# #??# #??????## ## #??# # | | ??????# #??# ?????## #?? ##??# | | ??????# #?? ????## ### #???##???# | | ??????# #?? ????# ##?# ########## # | | ??????# #?? ????# #??# %= # | | ??????# #?? ????# #??############# # | | ??????# #?? ????## ##??????????????# # | | ??????# #?? ?????## #???????????????######### | +----------------------------------------------------+ Best States ------------- Heat Dissipation 39 Energy Generation 14 Energy Capacity 250 Matter Stores 300 Matter Capacity 300 Sight Range 16 Terrain Scan Density 10 Evasion (%) 40 Item Schematics ----------------- None Robot Schematics ------------------ None Fabricated ------------ Nothing Alien Tech Used ----------------- None Achievements -------------- None Challenges ------------ None Game ------ Seed PhasingThermalThruster Manual? 0 Play Time 00:10:42 Cumulative 126.9 hours Start 2019.10.30 @ 19:43:57 End 2019.10.30 @ 19:51:47 Sessions 3 Manual Loads 0 Difficulty Rogue Special Mode None Game No. 36 Rogue 36 Adventurer 0 Explorer 0 Win Type - Total 2 Types 2/0/0/0/0/0/0 Lore% 52 Gallery% 54 Achievement% 36 Wizard Run 0 Options --------- ASCII 0 Keyboard 1 Movement Vi Keybinds 0 Fullscreen 1 Font 18/SmallcapsGlow Map View 76x50 Tactical HUD 1 Map Filters NONE Filters NONE Steam 1 RUN: a3a48f6e-ffc4-41b3-8d85-2446b9784676